fUSD/lending_fUSD_20240515
["ID","MTS","AMOUNT","RATE_DAILY","PERIOD"]
[327098983,1715809860818,-500.0,0.00012726,2]
[327098984,1715809860827,-500.0,0.00012726,2]
[327098985,1715809860835,-1335.71,0.00012726,2]
[327098986,1715809860845,-629.58,0.00012726,2]
[327098987,1715809860854,-500.0,0.00012726,2]
[327098988,1715809860863,-500.0,0.00012726,2]
[327098989,1715809860873,-500.0,0.00012726,2]
[327098990,1715809860883,-500.0,0.00012726,2]
[327098991,1715809860892,-188.75,0.00012732,2]
[327098992,1715809860901,-178.78,0.00012749,2]
[327098993,1715809860911,-12649.23290629,0.0001275,2]
[327098994,1715809860920,-5000.0,0.000128,2]
[327098995,1715809860929,-2135.01,0.00012849,2]
[327098996,1715809860939,-1560.32144644,0.00012853,2]
[327098997,1715809860948,-3000.0,0.0001287,2]
[327098998,1715809860957,-240.0,0.00012884,2]
[327098999,1715809860966,-200.0,0.00012896,2]
[327099000,1715809860975,-1000.0,0.00012896,2]
[327099001,1715809860985,-500.0,0.00012896,2]
[327099002,1715809860994,-194.48369157,0.000129,2]
[327099003,1715809861003,-164.91548016,0.000129,2]
[327099004,1715809861012,-516.0,0.000129,2]
[327099005,1715809861023,-3296.78172738,0.000129,2]
[327099006,1715809861033,-1000.0,0.000129,2]
[327099007,1715809861042,-428.20829024,0.0001299,2]
[327099008,1715809861051,-314.77,0.00012994,2]
[327099009,1715809861061,-370.98,0.00012994,2]
[327099010,1715809861070,-500.0,0.00012994,2]
[327099011,1715809861079,-500.0,0.00012994,2]
[327099012,1715809861088,-500.0,0.00012995,2]
[327099013,1715809861097,-615.54,0.00012995,2]
[327099014,1715809861107,-500.0,0.00012995,2]
[327099015,1715809861116,-500.0,0.00012995,2]
[327099016,1715809861127,-576.41219854,0.00012995,2]
[327099017,1715809861138,-500.0,0.00012995,2]
[327099018,1715809861147,-500.0,0.00012995,2]
[327099019,1715809861156,-500.0,0.00012995,2]
[327099020,1715809861167,-500.0,0.00012995,2]
[327099021,1715809861176,-500.0,0.00012995,2]
[327099022,1715809861185,-500.0,0.00012995,2]
[327099023,1715809861194,-500.0,0.00012995,2]
[327099024,1715809861206,-500.0,0.00012995,2]
[327099025,1715809861215,-500.0,0.00012995,2]
[327099026,1715809861224,-500.0,0.00012995,2]
[327099027,1715809861233,-500.0,0.00012995,2]
[327099028,1715809861242,-711.3,0.00012995,2]
[327099029,1715809861251,-500.0,0.00012995,2]
[327099030,1715809861261,-500.0,0.00012995,2]
[327099031,1715809861273,-576.9,0.00012995,2]
[327099032,1715809861282,-500.0,0.00012995,2]
[327099033,1715809861291,-500.0,0.00012995,2]
[327099034,1715809861301,-500.0,0.00012995,2]
[327099035,1715809861310,-500.0,0.00012995,2]
[327099036,1715809861319,-545.79,0.00012995,2]
[327099037,1715809861328,-500.0,0.00012995,2]
[327099038,1715809861337,-488.9003855,0.00012995,2]
[327099039,1715809861346,-500.0,0.00012995,2]
[327099040,1715809861356,-500.0,0.00012995,2]
[327099041,1715809861365,-500.0,0.00012995,2]
[327099042,1715809861374,-500.0,0.00012995,2]
[327099043,1715809861384,-1185.2,0.00012995,2]
[327099044,1715809861393,-541.66,0.00012995,2]
[327099045,1715809861402,-704.29,0.00012995,2]
[327099046,1715809861412,-500.0,0.00012995,2]
[327099047,1715809861422,-500.0,0.00012995,2]
[327099048,1715809861431,-500.0,0.00012995,2]
[327099049,1715809861441,-500.0,0.00012995,2]
[327099050,1715809861450,-500.0,0.00012995,2]
[327099051,1715809861459,-500.0,0.00012995,2]
[327099052,1715809861468,-500.0,0.00012995,2]
[327099053,1715809861478,-229.32,0.00012995,2]
[327099054,1715809861487,-500.0,0.00012995,2]
[327099055,1715809861496,-500.0,0.00012995,2]
[327099056,1715809861505,-414.18,0.00012995,2]
[327099057,1715809861516,-500.0,0.00012995,2]
[327099058,1715809861525,-302.6,0.00012995,2]
[327099059,1715809861535,-500.0,0.00012995,2]
[327099060,1715809861545,-500.0,0.00012995,2]
[327099061,1715809861554,-549.14,0.00012995,2]
[327099062,1715809861563,-500.0,0.00012995,2]
[327099063,1715809861573,-500.0,0.00012995,2]
[327099064,1715809861582,-500.0,0.00012995,2]
[327099065,1715809861591,-384.06,0.00012995,2]
[327099066,1715809861600,-377.8,0.00012995,2]
[327099067,1715809861609,-500.0,0.00012995,2]
[327099068,1715809861619,-470.56772103,0.00012995,2]
[327099069,1715809861629,-284.52,0.00012995,2]
[327099070,1715809861638,-313.4,0.00012995,2]
[327099071,1715809861647,-500.0,0.00012995,2]
[327099072,1715809861656,-500.0,0.00012995,2]
[327099073,1715809861666,-500.0,0.00012995,2]
[327099074,1715809861676,-500.0,0.00012995,2]
[327099075,1715809861684,-500.0,0.00012995,2]
[327099076,1715809861694,-500.0,0.00012995,2]
[327099077,1715809861703,-500.0,0.00012995,2]
[327099078,1715809861712,-500.0,0.00012995,2]
[327099079,1715809861721,-500.0,0.00012995,2]
[327099080,1715809861730,-500.0,0.00012995,2]
[327099081,1715809861739,-500.0,0.00012995,2]
[327099082,1715809861749,-2877.955813,0.00012995,2]
[327099083,1715809861758,-640.64,0.00012995,2]
[327099084,1715809861771,-320.5,0.00012995,2]
[327099085,1715809861781,-500.0,0.00012995,2]
[327099086,1715809861790,-336.0,0.00012995,2]
[327099087,1715809861799,-500.0,0.00012995,2]
[327099088,1715809861809,-500.0,0.00012995,2]
[327099089,1715809861818,-500.0,0.00012995,2]
[327099090,1715809861827,-573.36,0.00012995,2]
[327099091,1715809861837,-500.0,0.00012995,2]
[327099092,1715809861846,-621.45,0.00012995,2]
[327099093,1715809861855,-500.0,0.00012995,2]
[327099094,1715809861864,-188.27188429,0.00012996,2]
[327099095,1715809861873,-515.42146296,0.00012996,2]
[327099096,1715809861883,-627.48,0.00012996,2]
[327099097,1715809861892,-500.0,0.00012996,2]
[327099098,1715809861901,-528.50721485,0.00012996,2]
[327099099,1715809861911,-500.0,0.00012996,2]
[327099100,1715809861920,-500.0,0.00012996,2]
[327099101,1715809861929,-500.0,0.00012996,2]
[327099102,1715809861938,-500.0,0.00012996,2]
[327099103,1715809861947,-674.45,0.00012996,2]
[327099104,1715809861956,-500.0,0.00012996,2]
[327099105,1715809861965,-415.56,0.00012996,2]
[327099106,1715809861975,-198.9,0.00012996,2]
[327099107,1715809861984,-632.19,0.00012996,2]
[327099108,1715809861993,-500.0,0.00012996,2]
[327099109,1715809862002,-500.0,0.00012996,2]
[327099110,1715809862012,-500.0,0.00012996,2]
[327099111,1715809862023,-222.6,0.00012996,2]
[327099112,1715809862032,-500.0,0.00012996,2]
[327099113,1715809862041,-500.0,0.00012996,2]
[327099114,1715809862051,-500.0,0.00012996,2]
[327099115,1715809862060,-500.0,0.00012996,2]
[327099116,1715809862070,-500.0,0.00012996,2]
[327099117,1715809862080,-479.71,0.00012996,2]
[327099118,1715809862089,-500.0,0.00012996,2]
[327099119,1715809862099,-500.0,0.00012996,2]
[327099120,1715809862108,-408.05,0.00012996,2]
[327099121,1715809862119,-577.39,0.00012996,2]
[327099122,1715809862133,-500.0,0.00012996,2]
[327099123,1715809862142,-500.0,0.00012996,2]
[327099124,1715809862152,-500.0,0.00012996,2]
[327099125,1715809862162,-500.0,0.00012996,2]
[327099126,1715809862174,-1647.89,0.00012996,2]
[327099127,1715809862183,-500.0,0.00012996,2]
[327099128,1715809862193,-500.0,0.00012996,2]
[327099129,1715809862202,-500.0,0.00012996,2]
[327099130,1715809862215,-506.52,0.00012996,2]
[327099131,1715809862226,-1001.43,0.00012996,2]
[327099132,1715809862236,-500.0,0.00012996,2]
[327099133,1715809862246,-500.0,0.00012996,2]
[327099134,1715809862256,-500.0,0.00012996,2]
[327099135,1715809862265,-500.0,0.00012996,2]
[327099136,1715809862275,-500.0,0.00012996,2]
[327099137,1715809862284,-549.62,0.00012996,2]
[327099138,1715809862294,-500.0,0.00012996,2]
[327099139,1715809862303,-500.0,0.00012996,2]
[327099140,1715809862313,-500.0,0.00012996,2]
[327099141,1715809862322,-500.0,0.00012996,2]
[327099142,1715809862332,-500.0,0.00012996,2]
[327099143,1715809862341,-500.0,0.00012996,2]
[327099144,1715809862351,-500.0,0.00012996,2]
[327099145,1715809862359,-500.0,0.00012996,2]
[327099146,1715809862369,-500.0,0.00012996,2]
[327099147,1715809862379,-500.0,0.00012996,2]
[327099148,1715809862388,-500.0,0.00012996,2]
[327099149,1715809862397,-500.0,0.00012996,2]
[327099150,1715809862407,-500.0,0.00012996,2]
[327099151,1715809862417,-52205.47106663,0.00012997,2]
[327099152,1715809862431,-4238.45798058,0.00012997,2]
[327099153,1715809862443,-6534.06478317,0.00012997,2]
[327099154,1715809862570,-332.12793,0.00011321,2]
[327099155,1715809862595,-422.53146395,0.00011321,2]
[327099156,1715809862604,-500.0,0.0001178,2]
[327099157,1715809862614,-178.36853555,0.00012995,2]
[327099158,1715809862631,-237.73146445,0.00012995,2]
[327099159,1715809862640,-964.22589543,0.00012997,2]
[327099160,1715809862651,-59999.71639,0.00012997,2]
[327099161,1715809862742,19721.54011927,8.331e-05,2]
[327099162,1715809863461,150.0,8.33e-05,2]
[327099163,1715809875098,7286.30307011,8.331e-05,2]
[327099172,1715810742953,361.94065903,8.331e-05,2]
[327099173,1715810761058,200.0,8.289e-05,2]
[327099174,1715810762899,362.12605116,8.331e-05,2]
[327099175,1715810780125,160.45,8.366e-05,2]
[327099176,1715810906306,264.82133589,8.324e-05,2]
[327099190,1715811031713,-180.10595824,0.0001,2]
[327099191,1715811031722,-171.06171806,0.0001,2]
[327099192,1715811031732,-193.56613687,0.0001,2]
[327099193,1715811031742,-865.9150477,0.0001,2]
[327099194,1715811031751,-804.35457658,0.0001,3]
[327099195,1715811031760,-193.56613687,0.00010026,2]
[327099196,1715811031769,-193.56613687,0.00010151,2]
[327099197,1715811031778,-111.19816901,0.00010251,2]
[327099198,1715811031851,-1491.47183099,0.00010251,2]
[327099199,1715811031860,-150.0,0.00010259,2]
[327099200,1715811031869,-770.82795595,0.0001026,2]
[327099265,1715811037839,-327.9420034,0.0001026,2]
[327099266,1715811037851,-3001.23004065,0.0001026,2]
[327099267,1715811037860,-700.0,0.0001026,2]
[327099268,1715811037870,-1939.29602297,0.0001026,2]
[327099269,1715811037881,-1260.70397703,0.0001026,2]
[327099270,1715811037890,-1200.0,0.0001026,2]
[327099271,1715811037899,-500.0,0.0001026,2]
[327099272,1715811037909,-1852.42,0.00010284,2]
[327099273,1715811037918,-186.87602297,0.00010287,2]
[327099274,1715811037980,-1.87397703,0.00010287,2]
[327099275,1715811037990,-250.0,0.00010288,2]
[327099276,1715811038000,-160.0,0.00010321,2]
[327099277,1715811038010,-243.24,0.00010411,2]
[327099278,1715811038019,-170.37,0.00010464,2]
[327099279,1715811038028,-904.0,0.00010524,2]
[327099280,1715811038038,-2000.0,0.00010959,3]
[327099281,1715811038047,-803.3483767,0.00011,2]
[327099282,1715811038056,-4100.0,0.00011082,2]
[327099283,1715811038065,-700.0,0.00011082,2]
[327099284,1715811038074,-3200.0,0.00011082,2]
[327099285,1715811038084,-1200.0,0.00011082,2]
[327099286,1715811038093,-500.0,0.00011082,2]
[327099287,1715811038102,-150.46,0.00011263,2]
[327099288,1715811038109,-150.46,0.00011268,2]
[327099289,1715811038117,-150.46,0.00011272,2]
[327099290,1715811038125,-150.46,0.00011276,2]
[327099291,1715811038133,-150.46,0.00011281,2]
[327099292,1715811038139,-150.46,0.00011285,2]
[327099293,1715811038146,-150.46,0.00011289,2]
[327099294,1715811038156,-150.46,0.00011294,2]
[327099295,1715811038165,-150.46,0.00011298,2]
[327099296,1715811038175,-150.46,0.00011302,2]
[327099297,1715811038185,-150.46,0.00011307,2]
[327099298,1715811038194,-150.46,0.00011311,2]
[327099299,1715811038204,-150.46,0.00011315,2]
[327099300,1715811038213,-150.46,0.0001132,2]
[327099301,1715811038222,-194.499434,0.00011522,2]
[327099302,1715811038231,-685.963768,0.00011522,2]
[327099303,1715811038241,-166.850613,0.00011522,2]
[327099304,1715811038252,-158.613838,0.00011522,2]
[327099305,1715811038261,-154.455866,0.00011522,2]
[327099306,1715811038271,-329.08,0.00011625,2]
[327099307,1715811038281,-194.499434,0.00011666,2]
[327099308,1715811038290,-685.963768,0.00011666,2]
[327099309,1715811038299,-1000.0,0.0001168,2]
[327099310,1715811038309,-1513.3867,0.0001168,2]
[327099311,1715811038318,-7500.0,0.0001168,2]
[327099312,1715811038328,-1354.4814,0.0001168,2]
[327099313,1715811038338,-1010.456,0.0001168,2]
[327099314,1715811038347,-919.89601438,0.00011705,2]
[327099315,1715811038356,-200.79793567,0.00011778,2]
[327099316,1715811038365,-155.0,0.00011779,2]
[327099318,1715811038375,-500.0,0.0001178,2]
[327099320,1715811038384,-500.0,0.0001178,2]
[327099321,1715811038393,-501.96322582,0.0001178,2]
[327099322,1715811038402,-503.38925547,0.0001178,2]
[327099323,1715811038412,-506.52667082,0.0001178,2]
[327099324,1715811038421,-504.95497674,0.0001178,2]
[327099325,1715811038431,-504.75185056,0.0001178,2]
[327099326,1715811038440,-500.0,0.0001178,2]
[327099327,1715811038449,-501.18982276,0.0001178,2]
[327099328,1715811038459,-500.0,0.0001178,2]
[327099329,1715811038468,-505.35087728,0.0001178,2]
[327099330,1715811038478,-500.0,0.0001178,2]
[327099331,1715811038487,-630.76401007,0.0001178,2]
[327099332,1715811038497,-502.29877054,0.0001178,2]
[327099333,1715811038510,-500.0,0.0001178,2]
[327099334,1715811038519,-500.0,0.0001178,2]
[327099335,1715811038529,-150.19349803,0.0001178,2]
[327099336,1715811038538,-502.67998206,0.0001178,2]
[327099337,1715811038549,-503.11410396,0.0001178,2]
[327099338,1715811038559,-649.18498468,0.0001178,2]
[327099339,1715811038569,-500.0,0.0001178,2]
[327099340,1715811038578,-500.0,0.0001178,2]
[327099341,1715811038590,-216.48355915,0.0001178,2]
[327099342,1715811038600,-500.0,0.0001178,2]
[327099343,1715811038610,-501.6669792,0.0001178,2]
[327099344,1715811038619,-515.9330924,0.0001178,2]
[327099345,1715811038629,-512.46524868,0.0001178,2]
[327099346,1715811038638,-502.9218921,0.0001178,2]
[327099347,1715811038648,-216.03273696,0.0001178,2]
[327099348,1715811038657,-503.13383003,0.0001178,2]
[327099349,1715811038666,-500.0,0.0001178,2]
[327099350,1715811038676,-501.64978576,0.0001178,2]
[327099351,1715811038686,-574.63557454,0.0001178,2]
[327099352,1715811038695,-500.0,0.0001178,2]
[327099353,1715811038704,-500.0,0.0001178,2]
[327099354,1715811038714,-577.16,0.0001178,2]
[327099355,1715811038724,-577.16,0.0001178,2]
[327099356,1715811038733,-577.16,0.0001178,2]
[327099357,1715811038743,-577.16,0.0001178,2]
[327099358,1715811038753,-577.16,0.0001178,2]
[327099359,1715811038762,-577.16,0.0001178,2]
[327099360,1715811038771,-577.16,0.0001178,2]
[327099361,1715811038781,-1274.41,0.0001178,2]
[327099362,1715811038790,-1274.41,0.0001178,2]
[327099363,1715811038799,-1274.41,0.0001178,2]
[327099364,1715811038808,-1274.41,0.0001178,2]
[327099365,1715811038818,-1274.41,0.0001178,2]
[327099366,1715811038827,-1274.41,0.0001178,2]
[327099367,1715811038836,-1274.41,0.0001178,2]
[327099368,1715811038846,-500.0,0.0001178,2]
[327099369,1715811038855,-500.0,0.0001178,2]
[327099370,1715811038864,-500.0,0.0001178,2]
[327099371,1715811038873,-500.0,0.0001178,2]
[327099372,1715811038882,-500.0,0.0001178,2]
[327099373,1715811038892,-500.0,0.0001178,2]
[327099374,1715811038901,-326.69,0.0001178,2]
[327099375,1715811038910,-500.0,0.0001178,2]
[327099376,1715811038919,-500.0,0.0001178,2]
[327099377,1715811038928,-500.0,0.0001178,2]
[327099378,1715811038938,-500.0,0.0001178,2]
[327099379,1715811038947,-500.0,0.0001178,2]
[327099380,1715811038956,-500.0,0.0001178,2]
[327099381,1715811038965,-500.0,0.0001178,2]
[327099382,1715811038975,-503.57617961,0.0001178,2]
[327099383,1715811038984,-500.0,0.0001178,2]
[327099384,1715811038993,-500.0,0.0001178,2]
[327099385,1715811039003,-500.0,0.0001178,2]
[327099386,1715811039011,-500.0,0.0001178,2]
[327099387,1715811039021,-500.0,0.0001178,2]
[327099388,1715811039031,-456.78,0.0001178,2]
[327099389,1715811039040,-500.0,0.0001178,2]
[327099390,1715811039050,-500.0,0.0001178,2]
[327099391,1715811039059,-1037.05,0.0001178,2]
[327099392,1715811039068,-1037.05,0.0001178,2]
[327099393,1715811039078,-1037.05,0.0001178,2]
[327099394,1715811039087,-500.0,0.0001178,2]
[327099395,1715811039096,-1037.05,0.0001178,2]
[327099396,1715811039106,-500.0,0.0001178,2]
[327099397,1715811039115,-1037.05,0.0001178,2]
[327099398,1715811039125,-1037.05,0.0001178,2]
[327099399,1715811039135,-1037.05,0.0001178,2]
[327099400,1715811039145,-500.0,0.0001178,2]
[327099401,1715811039155,-500.0,0.0001178,2]
[327099402,1715811039165,-573.71,0.0001178,2]
[327099403,1715811039176,-500.0,0.0001178,2]
[327099404,1715811039186,-500.0,0.0001178,2]
[327099405,1715811039196,-616.26,0.0001178,2]
[327099406,1715811039206,-616.26,0.0001178,2]
[327099407,1715811039216,-616.26,0.0001178,2]
[327099408,1715811039226,-616.26,0.0001178,2]
[327099409,1715811039235,-616.26,0.0001178,2]
[327099410,1715811039246,-616.26,0.0001178,2]
[327099411,1715811039255,-616.26,0.0001178,2]
[327099412,1715811039265,-502.85311731,0.0001178,2]
[327099413,1715811039274,-500.0,0.0001178,2]
[327099414,1715811039283,-500.0,0.0001178,2]
[327099415,1715811039293,-500.0,0.0001178,2]
[327099416,1715811039302,-500.0,0.0001178,2]
[327099417,1715811039312,-436.11,0.0001178,2]
[327099418,1715811039321,-500.0,0.0001178,2]
[327099419,1715811039330,-500.0,0.0001178,2]
[327099420,1715811039340,-500.0,0.0001178,2]
[327099421,1715811039349,-500.0,0.0001178,2]
[327099422,1715811039359,-500.0,0.0001178,2]
[327099423,1715811039368,-500.0,0.0001178,2]
[327099424,1715811039378,-500.0,0.0001178,2]
[327099426,1715811039598,-500.0,0.0001178,2]
[327099428,1715811039608,-500.0,0.0001178,2]
[327099430,1715811039618,-500.0,0.0001178,2]
[327099431,1715811039628,-500.0,0.0001178,2]
[327099432,1715811039637,-500.0,0.0001178,2]
[327099433,1715811039647,-500.0,0.0001178,2]
[327099434,1715811039656,-500.0,0.0001178,2]
[327099435,1715811039666,-417.2,0.0001178,2]
[327099436,1715811039676,-500.0,0.0001178,2]
[327099437,1715811039685,-500.0,0.0001178,2]
[327099438,1715811039694,-500.0,0.0001178,2]
[327099439,1715811039704,-500.0,0.0001178,2]
[327099440,1715811039713,-500.0,0.0001178,2]
[327099441,1715811039723,-500.0,0.0001178,2]
[327099442,1715811039732,-500.0,0.0001178,2]
[327099443,1715811039741,-500.0,0.0001178,2]
[327099444,1715811039752,-500.0,0.0001178,2]
[327099446,1715811039762,-500.0,0.0001178,2]
[327099447,1715811039772,-500.0,0.0001178,2]
[327099449,1715811039781,-500.0,0.0001178,2]
[327099450,1715811039790,-500.0,0.0001178,2]
[327099451,1715811039800,-500.0,0.0001178,2]
[327099452,1715811039809,-500.0,0.0001178,2]
[327099453,1715811039819,-237.6,0.0001178,2]
[327099454,1715811039828,-500.0,0.0001178,2]
[327099455,1715811039838,-500.0,0.0001178,2]
[327099456,1715811039847,-500.0,0.0001178,2]
[327099457,1715811039857,-500.0,0.0001178,2]
[327099458,1715811039866,-334.56351605,0.0001178,2]
[327099459,1715811039875,-581.62,0.0001178,2]
[327099460,1715811039885,-500.0,0.0001178,2]
[327099461,1715811039894,-500.0,0.0001178,2]
[327099462,1715811039903,-500.0,0.0001178,2]
[327099463,1715811039913,-500.0,0.0001178,2]
[327099464,1715811039922,-500.0,0.0001178,2]
[327099465,1715811039931,-500.0,0.0001178,2]
[327099466,1715811039940,-308.27683787,0.0001178,2]
[327099467,1715811039949,-264.1,0.0001178,2]
[327099468,1715811039958,-590.02,0.0001178,2]
[327099469,1715811039968,-499.99,0.0001178,2]
[327099470,1715811039977,-500.0,0.0001178,2]
[327099471,1715811039987,-474.89,0.0001178,2]
[327099472,1715811039997,-500.0,0.0001178,2]
[327099473,1715811040006,-500.0,0.0001178,2]
[327099474,1715811040015,-500.0,0.0001178,2]
[327099475,1715811040024,-500.0,0.0001178,2]
[327099476,1715811040033,-500.0,0.0001178,2]
[327099477,1715811040042,-500.0,0.0001178,2]
[327099478,1715811040051,-500.0,0.0001178,2]
[327099479,1715811040060,-500.0,0.0001178,2]
[327099480,1715811040069,-160.93,0.0001178,2]
[327099481,1715811040078,-161.77,0.0001178,2]
[327099482,1715811040087,-586.59,0.0001178,2]
[327099483,1715811040096,-251.44,0.0001178,2]
[327099484,1715811040106,-420.08,0.0001178,2]
[327099485,1715811040115,-153.65,0.0001178,2]
[327099486,1715811040124,-500.0,0.0001178,2]
[327099487,1715811040134,-500.0,0.0001178,2]
[327099488,1715811040144,-283.41,0.0001178,2]
[327099489,1715811040153,-500.0,0.0001178,2]
[327099490,1715811040162,-500.0,0.0001178,2]
[327099491,1715811040171,-500.0,0.0001178,2]
[327099492,1715811040180,-500.0,0.0001178,2]
[327099493,1715811040190,-500.0,0.0001178,2]
[327099494,1715811040199,-500.0,0.0001178,2]
[327099495,1715811040208,-500.0,0.0001178,2]
[327099496,1715811040218,-587.72,0.0001178,2]
[327099497,1715811040227,-500.0,0.0001178,2]
[327099498,1715811040237,-500.0,0.0001178,2]
[327099499,1715811040246,-500.0,0.0001178,2]
[327099500,1715811040255,-500.0,0.0001178,2]
[327099501,1715811040265,-325.8,0.0001178,2]
[327099502,1715811040274,-500.0,0.0001178,2]
[327099503,1715811040283,-609.3795181,0.0001178,2]
[327099504,1715811040292,-500.0,0.0001178,2]
[327099505,1715811040302,-505.73857968,0.0001178,2]
[327099506,1715811040311,-500.0,0.0001178,2]
[327099507,1715811040320,-500.0,0.0001178,2]
[327099508,1715811040330,-258.38,0.0001178,2]
[327099509,1715811040339,-545.76881169,0.0001178,2]
[327099510,1715811040348,-150.0,0.0001178,2]
[327099511,1715811040357,-254.10300567,0.0001178,2]
[327099512,1715811040366,-500.0,0.0001178,2]
[327099513,1715811040376,-500.0,0.0001178,2]
[327099514,1715811040385,-504.62613176,0.0001178,2]
[327099515,1715811040394,-500.0,0.0001178,2]
[327099516,1715811040403,-500.0,0.0001178,2]
[327099517,1715811040412,-500.0,0.0001178,2]
[327099518,1715811040421,-500.0,0.0001178,2]
[327099519,1715811040431,-500.0,0.0001178,2]
[327099520,1715811040440,-500.0,0.0001178,2]
[327099521,1715811040449,-500.0,0.0001178,2]
[327099522,1715811040458,-520.46460838,0.0001178,2]
[327099523,1715811040468,-349.23,0.0001178,2]
[327099524,1715811040477,-500.0,0.0001178,2]
[327099525,1715811040487,-500.0,0.0001178,2]
[327099526,1715811040495,-500.0,0.0001178,2]
[327099527,1715811040507,-500.0,0.0001178,2]
[327099528,1715811040518,-453.89369208,0.0001178,2]
[327099529,1715811040526,-500.0,0.0001178,2]
[327099530,1715811040535,-500.0,0.0001178,2]
[327099531,1715811040545,-500.0,0.0001178,2]
[327099532,1715811040554,-500.0,0.0001178,2]
[327099533,1715811040563,-500.0,0.0001178,2]
[327099534,1715811040572,-500.0,0.0001178,2]
[327099535,1715811040581,-500.0,0.0001178,2]
[327099536,1715811040594,-177.8,0.0001178,2]
[327099537,1715811040603,-174.24,0.0001178,2]
[327099538,1715811040612,-500.0,0.0001178,2]
[327099539,1715811040621,-198.28695595,0.0001178,2]
[327099540,1715811040631,-398.26906998,0.0001178,2]
[327099541,1715811040640,-500.0,0.0001178,2]
[327099542,1715811040649,-500.0,0.0001178,2]
[327099543,1715811040658,-500.0,0.0001178,2]
[327099544,1715811040668,-296.55,0.0001178,2]
[327099545,1715811040677,-500.0,0.0001178,2]
[327099546,1715811040686,-500.0,0.0001178,2]
[327099547,1715811040695,-500.0,0.0001178,2]
[327099548,1715811040704,-500.0,0.0001178,2]
[327099549,1715811040714,-500.0,0.0001178,2]
[327099550,1715811040723,-500.0,0.0001178,2]
[327099551,1715811040733,-500.0,0.0001178,2]
[327099552,1715811040742,-500.0,0.0001178,2]
[327099553,1715811040752,-500.0,0.0001178,2]
[327099554,1715811040761,-500.0,0.0001178,2]
[327099555,1715811040771,-500.0,0.0001178,2]
[327099556,1715811040780,-326.09,0.0001178,2]
[327099557,1715811040790,-500.0,0.0001178,2]
[327099558,1715811040799,-500.0,0.0001178,2]
[327099559,1715811040808,-370.4,0.0001178,2]
[327099560,1715811040818,-500.0,0.0001178,2]
[327099561,1715811040827,-500.0,0.0001178,2]
[327099562,1715811040837,-500.0,0.0001178,2]
[327099563,1715811040846,-500.0,0.0001178,2]
[327099564,1715811040855,-500.0,0.0001178,2]
[327099565,1715811040864,-500.0,0.0001178,2]
[327099566,1715811040874,-155.44,0.0001178,2]
[327099567,1715811040883,-500.0,0.0001178,2]
[327099568,1715811040892,-500.0,0.0001178,2]
[327099569,1715811040902,-500.0,0.0001178,2]
[327099570,1715811040911,-500.0,0.0001178,2]
[327099571,1715811040921,-500.0,0.0001178,2]
[327099572,1715811040930,-500.0,0.0001178,2]
[327099573,1715811040939,-500.0,0.0001178,2]
[327099574,1715811040948,-500.0,0.0001178,2]